bitfinex-derivatives/quotes_SOLF0:USTF0_20250309
["timestamp","ask_amount","ask_price","bid_price","bid_amount"]
[1741546263469,0.06040815,126.66,126.54,52.53140174]
[1741546263665,7.8987,126.62,126.57,7.901]
[1741546263966,40.84,126.65,126.55,49.0773]
[1741546264167,7.8972,126.64,126.55,49.0773]
[1741546264461,40.84,126.65,126.55,49.0773]
[1741546264665,7.9504503,126.61,126.59,0.05091376]
[1741546264863,0.0515503,126.61,126.59,0.05091376]
[1741546266566,7.8995,126.6,126.59,0.05091376]
[1741546267263,40.8915503,126.61,126.59,0.05091376]
[1741546268163,7.8995,126.6,126.59,0.05091376]
[1741546269063,40.8915503,126.61,126.5,8.1954]
[1741546269263,52.53140174,126.6,126.5,8.1954]
[1741546269465,52.53140174,126.58,126.46,104.32290819]
[1741546269665,52.53140174,126.56,126.46,49.1538]
[1741546269858,52.53140174,126.54,126.46,8.2938]
[1741546270059,52.53140174,126.52,126.44,43.55070237]
[1741546270264,40.84,126.51,126.5,3.864e-05]
[1741546270565,7.9083,126.46,126.44,43.55070237]
[1741546270766,40.84,126.47,126.44,43.55070237]
[1741546271370,52.53140174,126.46,126.44,43.60986079]
[1741546271566,52.53140174,126.46,126.44,0.36074501]
[1741546271867,48.7488,126.45,126.44,0.05915842]
[1741546272056,40.84,126.45,126.44,0.05915842]
[1741546272264,0.05042074,126.47,126.44,0.05915842]
[1741546272664,0.05042074,126.47,126.46,7.9082]
[1741546273057,0.05042074,126.47,126.44,0.05915842]
[1741546273262,7.9087,126.46,126.44,0.05915842]
[1741546273467,0.05042074,126.47,126.44,0.05915842]
[1741546275267,40.88,126.52,126.44,0.05915842]
[1741546275463,40.88,126.52,126.45,52.53140174]
[1741546275667,7.9018,126.57,126.47,52.53140174]
[1741546275967,40.88,126.56,126.49,52.53140174]
[1741546276163,7.9039,126.53,126.47,7.9074]
[1741546276368,7.9039,126.53,126.46,43.7311]
[1741546276369,40.88,126.56,126.46,43.7311]
[1741546276570,0.05078005,126.51,126.49,0.05323949]
[1741546276866,301.7,126.6,126.5,52.53140174]
[1741546277071,354.23140174,126.6,126.49,0.05323949]
[1741546277270,354.23140174,126.6,126.48,52.53140174]
[1741546277467,52.53140174,126.58,126.46,96.26250174]
[1741546277663,52.53140174,126.56,126.46,43.7311]
[1741546277867,40.88,126.55,126.46,43.7311]
[1741546278069,0.05348953,126.53,126.51,0.05941622]
[1741546278870,260.82,126.6,126.51,0.05941622]
[1741546279181,40.86,126.59,126.5,40.86]
[1741546279567,40.86,126.59,126.49,52.53140174]
[1741546279568,40.86,126.59,126.46,263.6711]
[1741546279768,52.53140174,126.56,126.46,2.8511]
[1741546279970,52.53140174,126.54,126.46,2.8511]
[1741546280267,0.05781689,126.52,126.5,0.05252663]
[1741546280470,40.86,126.51,126.5,0.05252663]
[1741546281169,40.86,126.51,126.39,313.35140174]
[1741546281473,52.53140174,126.5,126.4,5.3192]
[1741546281774,40.86,126.51,126.4,57.85060174]
[1741546282181,40.86,126.51,126.43,52.53140174]
[1741546282370,0.05983302,126.47,126.44,0.05676323]
[1741546282570,95.75140174,126.46,126.3,496.26]
[1741546282874,52.53140174,126.41,126.31,5.7079]
[1741546283076,97.17140174,126.41,126.31,5.7079]
[1741546283277,97.17140174,126.41,126.25,602.25540061]
[1741546283475,7.9127,126.39,126.31,7.9176]
[1741546283674,47.14,126.45,126.31,52.53140174]
[1741546283875,0.06083845,126.36,126.34,0.05356214]
[1741546284071,192.0,126.47,126.34,0.05356214]
[1741546284279,100.49140174,126.48,126.36,52.53140174]
[1741546284280,52.53140174,126.48,126.36,52.53140174]
[1741546284476,51.24,126.47,126.37,7.9137]
[1741546284678,51.24,126.47,126.36,52.53140174]
[1741546285480,192.0,126.51,126.42,52.53140174]
[1741546285674,52.78,126.56,126.43,5.817]
[1741546285675,63.35654016,126.56,126.43,5.817]
[1741546286074,10.82513842,126.56,126.49,7.9061]
[1741546286375,10.82513842,126.56,126.45,52.53140174]
[1741546286675,52.53140174,126.55,126.51,0.05881107]
[1741546286880,0.05875898,126.54,126.51,0.05881107]
[1741546287071,52.53140174,126.52,126.43,5.817]
[1741546287277,52.53140174,126.49,126.37,2.7671]
[1741546287475,52.53140174,126.46,126.37,8.5323]
[1741546287676,52.53140174,126.46,126.37,5.6842]
[1741546287872,52.53140174,126.43,126.3,313.45140174]
[1741546288075,52.53140174,126.37,126.24,52.53140174]
[1741546288272,52.53140174,126.37,126.25,65.1056]
[1741546288477,52.53140174,126.37,126.35,0.05189249]
[1741546288687,7.9127,126.39,126.32,7.9169]
[1741546288980,7.9127,126.39,126.29,87.23877541]
[1741546288981,0.05682176,126.37,126.35,0.0571704]
[1741546289485,192.0,126.44,126.35,0.0571704]
[1741546289788,192.0,126.44,126.35,5.6571]
[1741546289974,0.9391,126.47,126.35,65.4971]
[1741546290374,59.84,126.5,126.4,52.53140174]
[1741546290778,52.53140174,126.45,126.35,5.6571]
[1741546290978,52.53140174,126.45,126.44,0.00298616]
[1741546291181,52.53140174,126.45,126.35,5.6571]
[1741546291380,52.53140174,126.42,126.35,5.6571]
[1741546291979,52.53140174,126.42,126.35,2.7367]
[1741546292186,0.05084062,126.4,126.26,267.4764711]
[1741546292379,7.9153,126.35,126.25,2.9462]
[1741546292778,7.9166,126.33,126.26,7.9201]
[1741546293086,52.53140174,126.36,126.25,2.9462]
[1741546293281,7.9152,126.35,126.25,2.9462]
[1741546293486,0.4205,126.4,126.26,115.55140174]
[1741546293683,0.05154277,126.32,126.29,52.58507186]
[1741546293884,52.53140174,126.38,126.3,2.8348]
[1741546294276,52.53140174,126.42,126.32,52.53140174]
[1741546294481,52.53140174,126.42,126.3,2.8348]
[1741546294677,52.53140174,126.39,126.3,2.8348]
[1741546294981,52.53140174,126.42,126.3,55.36620174]
[1741546295185,52.53140174,126.43,126.33,0.05171257]
[1741546295384,7.9128,126.39,126.33,0.05171257]
[1741546295583,52.53140174,126.43,126.3,55.36620174]
[1741546295783,0.5274,126.46,126.36,52.53140174]
[1741546296084,261.04,126.49,126.37,5.7066]
[1741546296481,0.05917902,126.44,126.41,0.05219462]
[1741546296780,261.06,126.56,126.42,52.53140174]
[1741546296983,7.9027,126.55,126.47,7.9071]
[1741546297185,0.418,126.59,126.48,55.31340174]
[1741546297486,43.15554934,126.55,126.48,63.22030174]
[1741546297879,43.15554934,126.55,126.48,55.31340174]
[1741546298080,0.03707204,126.53,126.5,0.06024066]
[1741546298882,43.15554934,126.55,126.51,52.53140174]
[1741546299108,76.92199108,126.56,126.54,7.9032]
[1741546299387,76.92199108,126.56,126.54,52.53140174]
[1741546299388,33.38851894,126.56,126.54,52.53140174]
[1741546299689,33.38851894,126.56,126.49,70.7765]
[1741546299886,33.38851894,126.56,126.52,52.53140174]
[1741546300086,24.28301894,126.56,126.55,52.53140174]
[1741546300388,0.418,126.65,126.55,56.49140174]
[1741546300684,8.3611,126.69,126.59,52.53140174]
[1741546300985,128.85035582,126.73,126.62,52.53140174]
[1741546301184,136.74195582,126.73,126.65,52.53140174]
[1741546301584,128.85035582,126.73,126.65,52.53140174]
[1741546301985,128.85035582,126.73,126.68,0.05050603]
[1741546302183,7.8953,126.67,126.6,52.53140174]
[1741546302391,7.8953,126.67,126.59,7.8995]
[1741546302392,67.78,126.7,126.58,313.51140174]
[1741546302588,67.78,126.7,126.61,52.53140174]
[1741546302788,120.31140174,126.7,126.58,313.51140174]
[1741546302990,52.53140174,126.68,126.56,52.53140174]
[1741546303384,52.53140174,126.66,126.54,276.94761867]
[1741546303589,52.58190777,126.63,126.54,32.41621693]
[1741546303790,0.05050603,126.63,126.57,52.53140174]
[1741546303989,5.7544,126.67,126.57,52.53140174]
[1741546304293,75.854,126.69,126.6,52.53140174]
[1741546304500,247.39920174,126.72,126.6,52.53140174]
[1741546304694,247.39920174,126.72,126.63,52.53140174]
[1741546304695,2.8678,126.72,126.63,52.53140174]
[1741546304891,0.05505378,126.67,126.63,52.53140174]
[1741546305095,0.05505378,126.67,126.65,0.05059257]
[1741546306096,260.18,126.76,126.65,0.05059257]
[1741546306296,52.53140174,126.75,126.65,0.05059257]
[1741546306495,71.0478,126.76,126.64,52.53140174]
[1741546306895,2.8678,126.76,126.64,52.53140174]
[1741546307086,2.8678,126.76,126.67,52.53140174]
[1741546307286,328.76,126.79,126.67,52.53140174]
[1741546307490,0.05610224,126.71,126.69,0.05001963]
[1741546307687,263.5837,126.79,126.69,52.53140174]
[1741546307891,2.8237,126.79,126.69,52.53140174]
[1741546308096,2.24e-06,126.71,126.7,7.8932]
[1741546308292,2.8237,126.82,126.7,52.53140174]
[1741546308494,2.9766,126.83,126.73,52.53140174]
[1741546308798,2.8237,126.86,126.76,52.53140174]
[1741546308996,2.8237,126.86,126.78,52.53140174]
[1741546309197,407.6359591,126.93,126.82,52.53140174]
[1741546309503,55.40430174,126.91,126.81,0.05806133]
[1741546309803,55.40430174,126.91,126.82,7.8853]
[1741546310101,2.9766,126.92,126.84,52.53140174]
[1741546310291,2.8729,126.95,126.85,0.05105918]
[1741546310695,2.8729,126.95,126.84,52.53140174]
[1741546311294,2.8729,126.95,126.8,2.7728]
[1741546311295,2.8729,126.95,126.89,0.05062147]
[1741546311501,52.53140174,126.93,126.89,0.05062147]
[1741546311797,194.8729,126.95,126.89,0.05062147]
[1741546312003,2.8729,126.95,126.89,0.05062147]
[1741546312388,7.8765,126.97,126.89,7.93202147]
[1741546312594,5.8925,127.0,126.89,0.05062147]
[1741546312799,5.8925,127.0,126.9,52.53140174]
[1741546312991,2.8853,127.0,126.93,0.05328694]
[1741546313201,194.8354,127.07,126.96,52.53140174]
[1741546313494,7.871,127.06,126.98,7.8757]
[1741546313698,200.6478,127.07,126.96,52.53140174]
[1741546313894,200.6478,127.07,127.0,0.05470301]
[1741546314100,192.0,127.13,127.02,52.53140174]
[1741546314306,2.8478,127.13,127.02,52.53140174]
[1741546314806,2.8478,127.13,127.06,0.05054578]
[1741546314999,7.8647,127.16,127.08,60.40090174]
[1741546315199,2.7846,127.18,127.06,0.05054578]
[1741546315402,2.7846,127.18,127.05,52.53140174]
[1741546315595,52.53140174,127.15,127.11,0.05268028]
[1741546315803,52.53140174,127.12,127.02,52.53140174]
[1741546315998,52.53140174,127.12,126.99,52.53140174]
[1741546316203,52.53140174,127.09,126.96,312.83140174]
[1741546316603,52.53140174,127.06,126.93,52.53140174]
[1741546317304,0.05110604,127.01,126.98,0.05165254]
[1741546317693,7.8749,127.0,126.93,7.8784]
[1741546317898,52.53140174,127.03,126.91,2.7728]
[1741546318098,0.05110604,127.01,126.98,0.05682066]
[1741546318299,2.8008,127.05,126.98,0.05682066]
[1741546318698,0.05110604,127.01,126.98,0.05682066]
[1741546320904,0.05110604,127.01,126.99,60.40600174]
[1741546321106,0.05110604,127.01,126.98,0.05682066]
[1741546323106,0.05110604,127.01,126.98,52.5882224]
[1741546323411,451.98,127.13,126.98,52.5882224]
[1741546323412,194.9247,127.13,126.98,316.5082224]
[1741546323608,197.8462,127.13,126.98,260.03682066]
[1741546323813,7.8714,127.06,126.98,259.98]
[1741546324110,52.53140174,127.11,126.99,52.53140174]
[1741546324511,52.53140174,127.08,127.04,0.05864103]
[1741546324712,2.9379,127.07,126.96,52.53140174]
[1741546324904,52.53140174,127.05,126.93,52.53140174]
[1741546325316,52.53140174,127.02,126.87,192.0]
[1741546325514,2.8094,127.01,126.87,194.8635]
[1741546326016,0.05561753,126.97,126.94,0.05670225]
[1741546326310,0.05561753,126.97,126.86,259.98]
[1741546326311,52.58701927,126.97,126.86,259.98]
[1741546326607,2.7867,126.98,126.84,52.53140174]
[1741546326802,2.7867,126.98,126.88,52.53140174]
[1741546327005,7.879,126.93,126.84,52.53140174]
[1741546327212,52.53140174,126.96,126.84,52.53140174]
[1741546327510,194.8094,127.01,126.9,52.53140174]
[1741546327705,4.758e-05,126.91,126.9,52.53140174]
[1741546327905,194.7867,127.07,126.9,56.47140174]
[1741546328110,52.53140174,127.03,126.9,55.45830174]
[1741546328514,52.53140174,127.03,126.93,52.53140174]
[1741546328812,52.53140174,127.03,126.9,55.45830174]
[1741546329315,0.05260738,126.99,126.97,0.05980765]
[1741546329709,2.9093,127.06,126.98,7.8758]
[1741546329912,52.53140174,127.05,126.95,52.53140174]
[1741546330113,0.05866873,126.99,126.97,0.05474412]
[1741546330518,2.9093,127.06,126.96,52.53140174]
[1741546330713,2.9093,127.06,126.93,52.53140174]
[1741546331014,0.05152082,126.99,126.97,0.05281368]
[1741546331411,2.9093,127.06,126.94,52.53140174]
[1741546331609,55.36640174,127.05,126.97,0.05003067]
[1741546331811,0.05774477,126.99,126.97,0.05003067]
[1741546332106,55.36640174,127.05,126.9,55.45830174]
[1741546332311,0.04974788,126.99,126.97,0.0556365]
[1741546332617,192.0,127.04,126.9,55.45830174]
[1741546332819,2.835,127.05,126.99,7.8749]
[1741546333013,2.835,127.05,126.97,52.5823505]
[1741546333214,0.05889695,127.03,126.97,52.53140174]
[1741546333413,0.05889695,127.03,126.9,247.45830174]
[1741546333617,0.05889695,127.03,127.0,0.05755792]
[1741546333919,2.835,127.05,126.96,52.53140174]
[1741546334113,0.05138304,127.03,127.0,0.05566802]
[1741546336517,5.5606,127.11,127.02,52.53140174]
[1741546336721,2.9961,127.13,127.05,52.53140174]
[1741546336922,5.8283,127.13,127.02,52.53140174]
[1741546337425,52.53140174,127.11,126.99,52.53140174]
[1741546337617,5.8283,127.13,126.99,52.53140174]
[1741546337922,7.8691,127.09,127.06,0.05496278]
[1741546338222,5.8283,127.13,127.06,0.05496278]
[1741546338425,7.8695,127.09,127.06,0.05496278]
[1741546338717,52.53140174,127.11,127.06,0.05496278]
[1741546338923,7.8701,127.08,127.06,0.05496278]
[1741546339223,197.8283,127.13,127.06,0.05496278]
[1741546339422,52.53140174,127.1,127.06,0.05496278]
[1741546339925,52.53140174,127.1,126.97,2.8018]
[1741546340220,7.8712,127.06,126.97,2.8018]
[1741546340417,197.8283,127.13,126.97,2.8018]
[1741546340621,197.8283,127.13,127.04,7.8716]
[1741546340823,197.8283,127.13,126.97,2.8018]
[1741546341015,52.53140174,127.11,127.01,7.8734]
[1741546341317,0.05300853,127.06,127.04,0.05854808]
[1741546341511,0.05300853,127.06,126.97,2.8018]
[1741546341712,52.53140174,127.11,126.97,2.8018]
[1741546342621,7.8722,127.04,127.03,0.05597499]
[1741546342823,7.8722,127.04,126.97,2.8018]
[1741546343027,52.53140174,127.08,126.97,2.8018]
[1741546343222,0.05959335,127.03,127.02,7.873]
[1741546343416,0.05959335,127.03,127.01,0.05273276]
[1741546343620,52.53140174,127.08,126.97,2.8018]
[1741546343820,7.8698,127.08,127.04,7.8721]
[1741546344025,0.05508758,127.04,127.01,0.0598893]
[1741546344224,0.05508758,127.04,127.01,52.53140174]
[1741546344527,0.05470221,127.04,127.01,0.05393959]
[1741546345420,0.05470221,127.04,127.03,7.8727]
[1741546345623,0.05470221,127.04,127.01,0.05393959]
[1741546346429,0.05470221,127.04,126.93,55.23700174]
[1741546346624,52.53140174,127.04,126.91,5.7445]
[1741546346923,7.8764,126.98,126.94,7.878]
[1741546347129,52.53140174,127.01,126.94,7.878]
[1741546347318,7.8777,126.96,126.92,7.8793]
[1741546347522,52.53140174,127.01,126.91,2.8866]
[1741546347726,0.0540122,126.95,126.93,0.05211062]
[1741546348029,7.8778,126.95,126.9,42.8670223]
[1741546348329,0.05891639,126.95,126.94,10.45080537]
[1741546349417,0.05891639,126.95,126.94,18.32910537]
[1741546349727,1.639e-05,126.95,126.94,18.32910537]
[1741546349927,1.639e-05,126.95,126.94,22.26910537]
[1741546350119,7.8711,127.06,127.01,7.8734]
[1741546350325,2.6993,127.06,126.97,52.53140174]
[1741546350628,122.87140174,127.11,127.0,52.53140174]
[1741546350830,70.34,127.11,126.96,55.25140174]
[1741546351029,52.53140174,127.09,126.96,55.25140174]
[1741546351324,0.05862055,127.04,127.01,0.05155743]
[1741546351725,0.05862055,127.04,126.96,52.53140174]
[1741546351931,2.9153,127.08,127.01,0.06049617]
[1741546352126,0.05169,127.02,127.01,0.06049617]
[1741546352331,2.9153,127.08,127.03,7.8723]
[1741546352630,0.05815705,127.03,126.96,52.53140174]
[1741546352830,10.7851,127.08,126.96,52.53140174]
[1741546352831,2.9153,127.08,127.04,0.05645999]
[1741546353129,7.92565386,127.07,126.99,52.53140174]
[1741546353328,2.9153,127.08,127.05,0.05184714]
[1741546353625,0.05990642,127.04,126.97,5.76755322]
[1741546353827,2.9153,127.08,127.05,0.06016504]
[1741546354125,0.05815765,127.08,127.0,52.53140174]
[1741546354330,2.954,127.1,127.05,0.05147792]
[1741546354733,0.05216128,127.09,127.05,0.05147792]
[1741546356129,2.7458,127.15,127.06,52.53140174]
[1741546356532,2.7458,127.15,127.02,55.31230174]
[1741546356832,2.7458,127.15,127.01,71.55666033]
[1741546356833,121.69140174,127.14,127.01,71.55666033]
[1741546357429,0.0500031,127.09,127.06,0.05941073]
[1741546357630,0.0500031,127.09,127.01,16.21835859]
[1741546357934,2.73,127.1,127.01,16.21835859]
[1741546358324,2.9687,127.09,127.01,16.21835859]
[1741546358535,68.8,127.08,127.01,16.21835859]
[1741546358732,0.05678292,127.06,127.04,0.05012119]
[1741546359733,7.8725,127.04,127.01,16.21835859]
[1741546359933,0.05678292,127.06,127.01,16.21835859]
[1741546360134,0.05678292,127.06,127.02,5.76755322]
[1741546360937,0.05678292,127.06,127.03,0.05502968]
[1741546361540,0.05678292,127.06,127.04,7.8717]
[1741546361739,0.05678292,127.06,127.03,0.05502968]
[1741546364845,7.8721,127.04,127.03,0.05502968]
[1741546365052,0.05678292,127.06,127.03,0.05502968]
[1741546365842,0.05678292,127.06,126.96,42.8670223]
[1741546366048,52.53140174,127.03,126.96,42.8670223]
[1741546366351,7.8765,126.97,126.96,42.8670223]
[1741546367657,0.06005916,126.98,126.95,0.05286849]
[1741546368346,7.93635916,126.98,126.95,0.05286849]
[1741546368546,0.06005916,126.98,126.95,0.05286849]
[1741546368951,0.06005916,126.98,126.96,7.8767]
[1741546369153,0.06005916,126.98,126.95,0.05286849]
[1741546373752,66.48005916,126.98,126.95,0.05286849]
[1741546374754,66.48005916,126.98,126.87,8.4476]
[1741546374960,52.53140174,126.96,126.87,2.7148]
[1741546375152,7.878,126.95,126.87,2.7148]
[1741546375353,52.53140174,126.96,126.87,2.7148]
[1741546375861,0.05492037,126.93,126.9,0.05872023]
[1741546376357,0.05492037,126.93,126.91,7.8797]
[1741546376759,0.05492037,126.93,126.9,0.05872023]
[1741546378363,0.05492037,126.93,126.83,10.45080537]
[1741546378566,0.05492037,126.93,126.83,13.20020537]
[1741546378758,55.31620174,126.94,126.83,13.20020537]
[1741546378959,7.8793,126.93,126.89,7.8811]
[1741546379265,2.7848,126.94,126.83,13.20020537]
[1741546379660,0.05931545,126.92,126.9,0.05597162]
[1741546379862,7.93931545,126.92,126.88,7.8816]
[1741546380060,0.05931545,126.92,126.9,0.05990744]
[1741546380261,7.8838,126.86,126.82,7.8854]
[1741546380466,52.53140174,126.88,126.79,10.45080537]
[1741546380756,52.53140174,126.9,126.79,10.45080537]
[1741546380965,117.97140174,126.92,126.8,52.53140174]
[1741546381266,2.7848,126.94,126.84,52.53140174]
[1741546381460,5.324e-05,126.87,126.86,60.41470174]
[1741546381654,1.3719422,127.0,126.86,52.53140174]
[1741546381655,2.82,127.0,126.86,52.53140174]
[1741546381858,2.8832,127.01,126.91,52.53140174]
[1741546382057,2.8832,127.01,126.93,52.53140174]
[1741546382259,65.18,127.05,126.93,52.53140174]
[1741546382461,7.8728,127.03,126.97,7.876]
[1741546382659,0.05746412,127.0,126.98,0.05985844]
[1741546382860,2.8832,127.05,126.98,0.05985844]
[1741546383068,343.7025359,127.08,126.98,0.05985844]
[1741546383266,52.53140174,127.05,126.98,0.05985844]
[1741546383468,52.53140174,127.05,126.94,2.7381]
[1741546383766,113.52851569,127.03,126.94,2.7381]
[1741546383966,113.52851569,127.03,126.95,52.53140174]
[1741546384265,0.05274149,127.0,126.97,0.04990137]
[1741546388564,5.6237,127.07,127.02,7.8728]
[1741546388565,5.6852,127.07,127.02,7.8728]
[1741546388864,5.6852,127.07,126.97,52.53140174]
[1741546389265,192.0,126.94,126.68,238.04484585]
[1741546389568,52.53140174,126.78,126.68,46.04484585]
[1741546389770,52.53140174,126.75,126.68,46.04484585]
[1741546389966,8.3843,126.83,126.72,0.0527516]
[1741546390170,8.198e-05,126.73,126.71,52.53140174]
[1741546390365,64.08,126.85,126.72,2.8449]
[1741546390569,54.10707337,126.93,126.79,52.53140174]
[1741546390773,54.10707337,126.93,126.8,265.7209]
[1741546391268,52.53140174,126.9,126.8,265.7209]
[1741546391465,52.53140174,126.87,126.85,0.05572313]
[1741546391658,52.53140174,126.87,126.75,2.8749]
[1741546391859,58.23700174,126.87,126.75,2.8749]
[1741546392064,52.53140174,126.84,126.75,2.8749]
[1741546392263,116.49140174,126.84,126.75,2.8749]
[1741546392863,1.57567163,126.93,126.78,0.05082696]
[1741546393070,31.21113416,126.95,126.91,52.53140174]
[1741546393270,31.21113416,126.95,126.88,52.53140174]
[1741546393574,31.21113416,126.89,126.88,52.53140174]
[1741546393778,14.22901482,126.89,126.88,52.53140174]
[1741546393974,14.22901482,126.89,126.86,323.86]
[1741546394272,14.22901482,126.89,126.87,0.05896777]
[1741546394574,0.04998025,126.9,126.88,116.09140174]
[1741546394775,2.8664,126.99,126.88,124.09140174]
[1741546394978,10.74069307,127.03,126.93,52.53140174]
[1741546395177,10.74069307,127.03,126.93,116.03140174]
[1741546395766,10.74069307,127.03,126.96,52.53140174]
[1741546395969,0.05461107,126.99,126.97,7.9352193]
[1741546396166,1.107e-05,126.99,126.98,63.28]
[1741546396375,10.74069307,127.03,126.98,63.28]
[1741546396676,10.74069307,127.03,127.0,52.53140174]
[1741546397072,2.7342,127.09,127.0,52.53140174]
[1741546397575,0.0521237,127.06,127.03,0.05984442]
[1741546398676,0.0521237,127.06,127.03,52.59124616]
[1741546399676,0.0521237,127.06,127.04,7.8721]
[1741546400065,0.0521237,127.06,127.03,115.15124616]
[1741546400278,0.0521237,127.06,127.04,7.8718]
[1741546400673,0.0521237,127.06,127.03,115.15124616]
[1741546400978,0.0521237,127.06,127.05,7.8715]
[1741546401378,2.37e-05,127.06,127.05,7.8715]
[1741546402374,2.37e-05,127.06,127.05,11.8115]
[1741546402677,5.586,127.17,127.05,3.94]
[1741546402878,5.586,127.17,127.03,566.99124616]
[1741546403080,5.586,127.17,127.08,52.53140174]
[1741546403283,10.74069307,127.18,127.09,61.82]
[1741546403779,10.74069307,127.18,127.12,0.06005067]
[1741546403780,0.03293592,127.15,127.12,0.06005067]
[1741546404979,0.03293592,127.15,127.14,7.8659]
[1741546405275,3.592e-05,127.15,127.14,7.8659]
[1741546405480,3.592e-05,127.15,127.14,60.39730174]
[1741546406180,3.592e-05,127.15,127.14,7.8659]
[1741546411583,3.592e-05,127.15,127.12,0.06005067]
[1741546411983,3.592e-05,127.15,127.14,7.8659]
[1741546414686,3.592e-05,127.15,127.12,0.06005067]
[1741546415285,3.592e-05,127.15,127.14,7.8659]
[1741546415486,3.592e-05,127.15,127.12,0.06005067]
[1741546416483,3.592e-05,127.15,127.14,7.8659]
[1741546417388,3.592e-05,127.15,127.13,111.55140174]
[1741546417987,3.592e-05,127.15,127.14,7.8659]
[1741546419787,7.4976,127.23,127.14,3.94]
[1741546419986,7.4976,127.23,127.21,7.8612]
[1741546420186,7.4976,127.23,127.14,52.53140174]
[1741546420387,7.4976,127.23,127.22,7.861]
[1741546421292,7.4976,127.23,127.21,0.05974954]
[1741546421986,192.0,127.28,127.21,0.05974954]
[1741546422184,7.5119,127.27,127.21,0.05974954]
[1741546422588,10.74069307,127.31,127.21,0.05974954]
[1741546422791,10.74069307,127.31,127.25,52.53140174]
[1741546423094,10.74069307,127.31,127.26,61.16]
[1741546423399,10.74069307,127.31,127.28,52.53140174]
[1741546423788,9.307e-05,127.31,127.28,52.53140174]
[1741546423990,9.307e-05,127.31,127.28,52.58504832]
[1741546424284,9.307e-05,127.31,127.3,7.856]
[1741546424492,70.31418153,127.34,127.28,52.58504832]
[1741546424792,128.85035582,127.36,127.33,60.38560174]
[1741546424996,215.6359591,127.38,127.33,60.38560174]
[1741546424997,215.6359591,127.38,127.33,52.53140174]
[1741546425192,174.7164591,127.38,127.37,52.53140174]
[1741546425391,4.9904,127.43,127.37,52.53140174]
[1741546425695,4.9904,127.43,127.37,113.45140174]
[1741546426086,4.9904,127.43,127.39,0.05099932]
[1741546426992,7.8493,127.41,127.33,7.8541]
[1741546427196,52.53140174,127.41,127.3,259.5]
[1741546427498,60.8,127.4,127.3,259.5]
[1741546427996,60.8,127.4,127.32,52.53140174]
[1741546428201,0.04942216,127.36,127.35,52.53140174]
[1741546428591,4.9904,127.43,127.35,52.53140174]
[1741546428790,0.04942216,127.37,127.35,52.53140174]
[1741546429098,451.3,127.51,127.36,105.06280348]
[1741546429293,162.7294591,127.48,127.42,52.53140174]
[1741546429596,5.0632,127.48,127.42,52.53140174]
[1741546429795,6.63207354,127.48,127.42,52.53140174]
[1741546429997,6.63207354,127.48,127.39,52.53140174]
[1741546430193,6.63207354,127.48,127.44,0.05137162]
[1741546430396,113.27140174,127.47,127.38,259.3]
[1741546430893,113.27140174,127.47,127.35,52.53140174]
[1741546431091,60.74,127.47,127.36,52.53140174]
[1741546431503,60.74,127.47,127.37,7.8516]
[1741546431797,0.05137162,127.43,127.4,0.05418387]
[1741546432595,0.05137162,127.43,127.42,7.8486]
[1741546432802,0.05137162,127.43,127.4,0.05418387]
[1741546433896,0.05137162,127.43,127.34,61.28]
[1741546434089,0.05137162,127.43,127.32,52.53140174]
[1741546434289,61.14,127.42,127.32,52.53140174]
[1741546434902,61.14,127.42,127.25,320.08]
[1741546434903,244.53140174,127.41,127.25,320.08]
[1741546435100,0.05493666,127.38,127.27,52.53140174]
[1741546435294,192.0,127.4,127.27,52.53140174]
[1741546435295,7.8531,127.35,127.3,7.8556]
[1741546435496,60.94,127.37,127.28,1.57133878]
[1741546435903,7.855,127.32,127.28,1.57133878]
[1741546436104,60.94,127.37,127.28,1.57133878]
[1741546436405,0.05554066,127.31,127.29,0.05198625]
[1741546436605,60.94,127.37,127.29,0.05198625]
[1741546436805,60.94,127.37,127.27,52.53140174]
[1741546436806,0.05030403,127.31,127.27,52.53140174]
[1741546437102,60.94,127.37,127.25,259.12]
[1741546437301,0.05918099,127.3,127.28,0.05630646]
[1741546437703,52.53140174,127.35,127.25,259.12]
[1741546437908,0.05177444,127.3,127.28,0.05313683]
[1741546438102,0.05177444,127.3,127.29,7.8567]
[1741546438304,60.94,127.37,127.27,52.53140174]
[1741546438609,0.05073603,127.31,127.28,0.0496322]
[1741546438908,60.94,127.37,127.27,52.53140174]
[1741546439103,2.5416,127.36,127.28,0.05722733]
[1741546439304,0.05429825,127.31,127.25,259.12]
[1741546439702,7.90989825,127.31,127.27,0.05077624]